fUSD/lending_fUSD_20240327
["ID","MTS","AMOUNT","RATE_DAILY","PERIOD"]
[320719277,1711531859081,-651.55,0.00055342,120]
[320719278,1711531859092,-701.95,0.00055342,120]
[320719279,1711531859103,-2130.92,0.00055342,120]
[320719280,1711531859113,-779.79,0.00055342,120]
[320719281,1711531859121,-4603.54,0.00055342,120]
[320719282,1711531859131,-712.79,0.00055342,120]
[320719283,1711531859140,-7358.75,0.00055342,120]
[320719284,1711531859150,-7568.71,0.00055342,120]
[320719285,1711531859159,-500.0,0.00055342,120]
[320719286,1711531859169,-18585.37,0.00055342,120]
[320719287,1711531859179,-151.0,0.00055342,120]
[320719288,1711531859188,-151.0,0.00055342,120]
[320719289,1711531859199,-1070.33,0.00055342,120]
[320719290,1711531859210,-1202.8,0.00055342,120]
[320719291,1711531859221,-1312.45,0.00055342,120]
[320719292,1711531859231,-2530.08,0.00055342,120]
[320719293,1711531859241,-269.33658709,0.00055342,4]
[320719294,1711531859251,-2457.99,0.00055342,120]
[320719295,1711531859261,-500.0,0.00055342,120]
[320719296,1711531859271,-5452.71,0.00055342,120]
[320719297,1711531859281,-1085.21,0.00055342,120]
[320719298,1711531859290,-500.0,0.00055342,120]
[320719299,1711531859300,-2099.27,0.00055342,120]
[320719300,1711531859310,-2327.39,0.00055342,120]
[320719301,1711531859319,-665.11,0.00055342,120]
[320719302,1711531859328,-1958.13,0.00055342,120]
[320719303,1711531859338,-8602.32,0.00055342,120]
[320719304,1711531859349,-987.71,0.00055342,120]
[320719305,1711531859358,-635.61,0.00055342,120]
[320719306,1711531859368,-788.03,0.00055342,120]
[320719307,1711531859377,-902.58,0.00055342,120]
[320719308,1711531859387,-1292.62,0.00055342,120]
[320719309,1711531859397,-1012.01,0.00055342,120]
[320719310,1711531859407,-1555.33,0.00055342,120]
[320719311,1711531859562,-500.0,0.00055342,120]
[320719312,1711531859572,-500.0,0.00055342,120]
[320719313,1711531859582,-1456.05,0.00055342,120]
[320719314,1711531859591,-500.0,0.00055342,120]
[320719315,1711531859603,-10798.45,0.00055342,120]
[320719316,1711531859612,-1938.92,0.00055342,120]
[320719317,1711531859622,-1854.86,0.00055342,120]
[320719318,1711531859632,-5968.92,0.00055342,120]
[320719319,1711531859642,-1171.98,0.00055342,120]
[320719320,1711531859651,-500.0,0.00055342,120]
[320719321,1711531859661,-1935.06,0.00055342,120]
[320719322,1711531859671,-928.26,0.00055342,120]
[320719323,1711531859680,-158.397024,0.00055342,120]
[320719324,1711531859689,-158.397024,0.00055342,120]
[320719325,1711531859699,-1848.33,0.00055342,120]
[320719326,1711531859709,-1479.48,0.00055342,120]
[320719327,1711531859719,-1536.63,0.00055342,120]
[320719328,1711531859729,-158.397024,0.00055342,120]
[320719329,1711531859738,-158.397024,0.00055342,120]
[320719330,1711531859747,-516.43,0.00055342,120]
[320719331,1711531859757,-569.72,0.00055342,120]
[320719332,1711531859766,-153.23629697,0.00055354,120]
[320719333,1711531859775,-500.0,0.00055399,7]
[320719334,1711531859786,-500.0,0.00055399,7]
[320719335,1711531859795,-500.0,0.00055399,7]
[320719336,1711531859805,-500.0,0.00055399,7]
[320719337,1711531859814,-500.0,0.00055399,7]
[320719338,1711531859824,-500.0,0.00055399,7]
[320719339,1711531859833,-500.0,0.00055399,7]
[320719340,1711531859842,-500.0,0.00055399,7]
[320719341,1711531859853,-500.0,0.00055399,7]
[320719342,1711531859862,-500.0,0.00055399,7]
[320719343,1711531859871,-500.0,0.00055399,7]
[320719344,1711531859880,-500.0,0.00055399,7]
[320719345,1711531859889,-500.0,0.00055399,7]
[320719346,1711531859899,-500.0,0.00055399,7]
[320719347,1711531859908,-500.0,0.00055399,7]
[320719348,1711531859918,-500.0,0.00055399,7]
[320719349,1711531859928,-500.0,0.00055399,7]
[320719350,1711531859938,-500.0,0.00055399,7]
[320719351,1711531859948,-500.0,0.00055399,7]
[320719352,1711531859958,-500.0,0.00055399,7]
[320719353,1711531859967,-500.0,0.00055399,7]
[320719354,1711531859977,-500.0,0.00055399,7]
[320719355,1711531859986,-500.0,0.00055399,7]
[320719356,1711531859996,-500.0,0.00055399,7]
[320719357,1711531860011,-500.0,0.00055399,7]
[320719358,1711531860023,-500.0,0.00055399,7]
[320719359,1711531860032,-500.0,0.00055399,7]
[320719360,1711531860042,-500.0,0.00055399,7]
[320719361,1711531860051,-500.0,0.00055399,7]
[320719362,1711531860060,-500.0,0.00055399,7]
[320719363,1711531860070,-501.29,0.00055399,7]
[320719364,1711531860079,-500.0,0.00055399,7]
[320719365,1711531860089,-500.0,0.00055399,7]
[320719366,1711531860100,-500.0,0.00055399,7]
[320719367,1711531860110,-500.0,0.00055399,7]
[320719368,1711531860119,-500.0,0.00055399,7]
[320719369,1711531860128,-500.0,0.00055399,7]
[320719370,1711531860138,-500.0,0.00055399,7]
[320719371,1711531860147,-500.0,0.00055399,7]
[320719372,1711531860157,-500.0,0.00055399,7]
[320719373,1711531860167,-500.0,0.00055399,7]
[320719374,1711531860176,-500.0,0.00055399,7]
[320719375,1711531860186,-500.0,0.00055399,7]
[320719376,1711531860196,-496.69,0.00055399,7]
[320719377,1711531860206,-2500.0,0.00055479,120]
[320719378,1711531860216,-2500.0,0.00055479,120]
[320719379,1711531860225,-2500.0,0.00055479,120]
[320719380,1711531860236,-2500.0,0.00055479,120]
[320719381,1711531860245,-2500.0,0.00055479,120]
[320719382,1711531860254,-2500.0,0.00055479,120]
[320719383,1711531860263,-2014.42039042,0.00055479,120]
[320719384,1711531860273,-278.467826,0.00055493,120]
[320719385,1711531860283,-157.032717,0.00055498,106]
[320719386,1711531860292,-1000.0,0.000555,120]
[320719387,1711531860303,-9412.1904012,0.00055578,2]
[320719388,1711531860313,-73102.5928737,0.00055578,2]
[320719389,1711531860322,-4096.4081738,0.00055578,2]
[320719390,1711531860333,-1072.0995,0.00055578,2]
[320719391,1711531860342,-500.0,0.00055616,120]
[320719392,1711531860354,-500.0,0.00055616,120]
[320719393,1711531860363,-500.0,0.00055616,120]
[320719394,1711531860373,-500.0,0.00055616,120]
[320719395,1711531860383,-500.0,0.00055616,120]
[320719396,1711531860393,-1041.2,0.00055616,120]
[320719397,1711531860404,-538.02,0.00055616,120]
[320719398,1711531860414,-500.0,0.00055616,120]
[320719399,1711531860423,-500.0,0.00055616,120]
[320719400,1711531860433,-500.0,0.00055616,120]
[320719401,1711531860442,-500.0,0.00055616,120]
[320719402,1711531860451,-500.0,0.00055616,120]
[320719403,1711531860461,-500.0,0.00055616,120]
[320719404,1711531860470,-500.0,0.00055616,120]
[320719405,1711531860479,-500.0,0.00055616,120]
[320719406,1711531860489,-629.99,0.00055616,120]
[320719407,1711531860498,-510.27,0.00055616,120]
[320719408,1711531860507,-500.0,0.00055616,120]
[320719409,1711531860517,-500.0,0.00055616,120]
[320719410,1711531860526,-500.0,0.00055616,120]
[320719411,1711531860535,-500.0,0.00055616,120]
[320719412,1711531860545,-1206.79,0.00055616,120]
[320719413,1711531860554,-500.0,0.00055616,120]
[320719414,1711531860563,-500.0,0.00055616,120]
[320719415,1711531860573,-500.0,0.00055616,120]
[320719416,1711531860582,-500.0,0.00055616,120]
[320719417,1711531860591,-693.22,0.00055616,120]
[320719418,1711531860602,-500.0,0.00055616,120]
[320719419,1711531860611,-500.0,0.00055616,120]
[320719420,1711531860622,-500.0,0.00055616,120]
[320719421,1711531860632,-633.17,0.00055616,120]
[320719422,1711531860642,-240.94161672,0.00055616,120]
[320719423,1711531860653,-500.0,0.00055616,120]
[320719424,1711531860662,-500.0,0.00055616,120]
[320719425,1711531860672,-500.0,0.00055616,120]
[320719426,1711531860681,-500.0,0.00055616,120]
[320719427,1711531860690,-500.0,0.00055616,120]
[320719428,1711531860699,-500.0,0.00055616,120]
[320719429,1711531860711,-500.0,0.00055616,120]
[320719430,1711531860720,-500.0,0.00055616,120]
[320719431,1711531860730,-551.76,0.00055616,120]
[320719432,1711531860739,-535.46,0.00055616,120]
[320719433,1711531860748,-500.0,0.00055616,120]
[320719434,1711531860758,-347.52196683,0.00055616,120]
[320719435,1711531860767,-500.0,0.00055616,120]
[320719436,1711531860776,-535.24,0.00055616,120]
[320719437,1711531860785,-736.96,0.00055616,120]
[320719438,1711531860795,-500.0,0.00055616,120]
[320719439,1711531860809,-500.0,0.00055616,120]
[320719440,1711531860818,-500.0,0.00055616,120]
[320719441,1711531860827,-500.0,0.00055616,120]
[320719442,1711531860836,-516.86,0.00055616,120]
[320719443,1711531860847,-500.0,0.00055616,120]
[320719444,1711531860856,-500.0,0.00055616,120]
[320719445,1711531860865,-563.33,0.00055616,120]
[320719446,1711531860875,-500.0,0.00055616,120]
[320719447,1711531860885,-500.0,0.00055616,120]
[320719448,1711531860894,-592.86,0.00055616,120]
[320719449,1711531860905,-1836.62,0.00055616,120]
[320719450,1711531860915,-151.0,0.00055616,14]
[320719451,1711531860925,-151.0,0.00055616,14]
[320719452,1711531860935,-1118.43,0.00055616,120]
[320719453,1711531860944,-157.416393,0.00055616,120]
[320719454,1711531860953,-500.0,0.00055616,120]
[320719455,1711531860963,-740.02,0.00055616,120]
[320719456,1711531860972,-753.17,0.00055616,120]
[320719457,1711531860982,-1656.49,0.00055616,120]
[320719458,1711531860992,-500.0,0.00055616,120]
[320719459,1711531861002,-500.0,0.00055616,120]
[320719460,1711531861013,-151.0,0.00055616,30]
[320719461,1711531861024,-915.24,0.00055616,120]
[320719462,1711531861034,-151.0,0.00055616,30]
[320719463,1711531861043,-1170.35,0.00055616,120]
[320719464,1711531861056,-517.36,0.00055616,120]
[320719465,1711531861065,-500.0,0.00055616,120]
[320719466,1711531861075,-500.0,0.00055616,120]
[320719467,1711531861084,-500.0,0.00055616,120]
[320719468,1711531861097,-579.11,0.00055616,120]
[320719469,1711531861107,-574.86,0.00055616,120]
[320719470,1711531861116,-278.22609665,0.00055616,120]
[320719471,1711531861126,-680.13,0.00055616,120]
[320719472,1711531861135,-500.0,0.00055616,120]
[320719473,1711531861144,-500.0,0.00055616,120]
[320719474,1711531861154,-874.66,0.00055616,120]
[320719475,1711531861163,-500.0,0.00055616,120]
[320719476,1711531861172,-500.0,0.00055616,120]
[320719477,1711531861182,-670.76,0.00055616,120]
[320719478,1711531861192,-500.0,0.00055616,120]
[320719479,1711531861201,-606.59,0.00055616,120]
[320719480,1711531861212,-610.94,0.00055616,120]
[320719481,1711531861222,-151.0,0.00055616,120]
[320719482,1711531861231,-151.0,0.00055616,120]
[320719483,1711531861241,-500.0,0.00055616,120]
[320719484,1711531861250,-500.0,0.00055616,120]
[320719485,1711531861259,-562.52,0.00055616,120]
[320719486,1711531861269,-1071.44,0.00055616,120]
[320719487,1711531861279,-764.04,0.00055616,120]
[320719488,1711531861287,-676.23,0.00055616,120]
[320719489,1711531861297,-802.42,0.00055616,120]
[320719490,1711531861306,-160.3867,0.00055616,120]
[320719491,1711531861315,-160.3867,0.00055616,120]
[320719492,1711531861325,-160.3867,0.00055616,120]
[320719493,1711531861334,-160.3867,0.00055616,120]
[320719494,1711531861343,-844.19,0.00055616,120]
[320719495,1711531861357,-1132.52,0.00055616,120]
[320719496,1711531861366,-851.58,0.00055616,120]
[320719497,1711531861375,-500.0,0.00055616,120]
[320719498,1711531861385,-516.24,0.00055616,120]
[320719499,1711531861394,-539.41,0.00055616,120]
[320719500,1711531861403,-681.78,0.00055616,120]
[320719501,1711531861532,-548.74,0.00055616,120]
[320719502,1711531861543,-500.0,0.00055616,120]
[320719503,1711531861552,-677.36,0.00055616,120]
[320719504,1711531861562,-669.94,0.00055616,120]
[320719505,1711531861572,-500.0,0.00055616,120]
[320719506,1711531861581,-755.61,0.00055616,120]
[320719507,1711531861590,-902.14,0.00055616,120]
[320719508,1711531861602,-566.94,0.00055616,120]
[320719509,1711531861611,-704.94,0.00055616,120]
[320719510,1711531861622,-500.0,0.00055616,120]
[320719511,1711531861631,-1074.4,0.00055616,120]
[320719512,1711531861641,-500.0,0.00055616,120]
[320719513,1711531861650,-625.39,0.00055616,120]
[320719514,1711531861660,-702.34,0.00055616,120]
[320719515,1711531861669,-2025.1,0.00055616,120]
[320719516,1711531861679,-500.0,0.00055616,120]
[320719517,1711531861688,-1311.57,0.00055616,120]
[320719518,1711531861697,-544.12,0.00055616,120]
[320719519,1711531861707,-745.46,0.00055616,120]
[320719520,1711531861716,-500.0,0.00055616,120]
[320719521,1711531861725,-500.0,0.00055616,120]
[320719522,1711531861735,-520.99,0.00055616,120]
[320719523,1711531861744,-632.89,0.00055616,120]
[320719524,1711531861754,-500.0,0.00055616,120]
[320719525,1711531861763,-508.31,0.00055616,120]
[320719526,1711531861773,-500.0,0.00055616,120]
[320719527,1711531861782,-573.76,0.00055616,120]
[320719528,1711531861792,-500.0,0.00055616,120]
[320719529,1711531861802,-151.0,0.00055616,120]
[320719530,1711531861811,-151.0,0.00055616,120]
[320719531,1711531861820,-500.0,0.00055616,120]
[320719532,1711531861829,-754.7,0.00055616,120]
[320719533,1711531861839,-608.0,0.00055616,120]
[320719534,1711531861850,-500.0,0.00055616,120]
[320719535,1711531861859,-810.04,0.00055616,120]
[320719536,1711531861869,-151.0,0.00055616,120]
[320719537,1711531861878,-151.0,0.00055616,120]
[320719538,1711531861888,-151.0,0.00055616,120]
[320719539,1711531861897,-176.231198,0.00055616,120]
[320719540,1711531861907,-500.0,0.00055616,120]
[320719541,1711531861917,-1121.74,0.00055616,120]
[320719542,1711531861926,-500.0,0.00055616,120]
[320719543,1711531861936,-171.289172,0.00055616,120]
[320719544,1711531861946,-171.289172,0.00055616,120]
[320719545,1711531861956,-517.79,0.00055616,120]
[320719546,1711531861966,-171.289172,0.00055616,120]
[320719547,1711531861976,-171.289172,0.00055616,120]
[320719548,1711531861985,-500.0,0.00055616,120]
[320719549,1711531861994,-611.7,0.00055616,120]
[320719550,1711531862004,-1241.73,0.00055616,120]
[320719551,1711531862016,-224.262294,0.00055616,120]
[320719553,1711531862025,-500.0,0.00055616,7]
[320719554,1711531862035,-760.26,0.00055616,120]
[320719555,1711531862044,-500.0,0.00055616,120]
[320719556,1711531862055,-674.47,0.00055616,120]
[320719557,1711531862064,-1173.96,0.00055616,120]
[320719558,1711531862073,-605.74,0.00055616,120]
[320719559,1711531862083,-500.0,0.00055616,120]
[320719560,1711531862094,-500.0,0.00055616,120]
[320719561,1711531862105,-564.99,0.00055616,120]
[320719562,1711531862115,-667.11,0.00055616,120]
[320719563,1711531862124,-549.9,0.00055616,120]
[320719564,1711531862133,-500.0,0.00055616,120]
[320719565,1711531862142,-500.0,0.00055616,120]
[320719566,1711531862151,-548.74,0.00055616,120]
[320719567,1711531862160,-578.56,0.00055616,120]
[320719568,1711531862169,-528.31,0.00055616,120]
[320719569,1711531862178,-1998.9,0.00055616,120]
[320719570,1711531862187,-399.73,0.00055616,120]
[320719571,1711531862196,-500.0,0.00055616,120]
[320719572,1711531862206,-839.13,0.00055616,120]
[320719573,1711531862217,-500.0,0.00055616,120]
[320719574,1711531862226,-500.0,0.00055616,120]
[320719575,1711531862236,-500.0,0.00055616,120]
[320719576,1711531862246,-645.46,0.00055616,120]
[320719577,1711531862256,-500.0,0.00055616,120]
[320719578,1711531862266,-693.58,0.00055616,120]
[320719579,1711531862275,-652.58,0.00055616,120]
[320719580,1711531862284,-500.0,0.00055616,120]
[320719581,1711531862294,-1267.72,0.00055616,120]
[320719582,1711531862303,-500.0,0.00055616,120]
[320719583,1711531862312,-792.29,0.00055616,120]
[320719584,1711531862321,-631.72,0.00055616,120]
[320719585,1711531862331,-500.0,0.00055616,120]
[320719586,1711531862341,-906.46,0.00055616,120]
[320719587,1711531862352,-500.0,0.00055616,120]
[320719588,1711531862361,-160.75164793,0.00055616,120]
[320719589,1711531862376,-500.0,0.00055616,120]
[320719590,1711531862397,-500.0,0.00055616,120]
[320719591,1711531862413,-500.0,0.00055616,120]
[320719592,1711531862435,-500.0,0.00055616,120]
[320719593,1711531862455,-1153.06,0.00055616,120]
[320719594,1711531862471,-500.0,0.00055616,120]
[320719595,1711531862488,-500.0,0.00055616,120]
[320719596,1711531862507,-746.11,0.00055616,120]
[320719597,1711531862528,-717.93,0.00055616,120]
[320719598,1711531862547,-151.0,0.00055616,120]
[320719599,1711531862564,-300.872343,0.00055616,120]
[320719600,1711531862583,-770.84,0.00055616,120]
[320719601,1711531862604,-509.66,0.00055616,120]
[320719602,1711531862617,-500.0,0.00055616,120]
[320719603,1711531862634,-500.0,0.00055616,120]
[320719604,1711531862650,-500.0,0.00055616,120]
[320719605,1711531862662,-500.0,0.00055616,120]
[320719606,1711531862677,-1239.68,0.00055616,120]
[320719607,1711531862691,-500.0,0.00055616,120]
[320719608,1711531862707,-500.0,0.00055616,120]
[320719609,1711531862722,-1596.95,0.00055616,120]
[320719610,1711531862737,-500.0,0.00055616,120]
[320719611,1711531862752,-500.0,0.00055616,120]
[320719612,1711531862767,-1339.94,0.00055616,120]
[320719613,1711531862782,-1183.42,0.00055616,120]
[320719614,1711531862799,-500.0,0.00055616,120]
[320719615,1711531862815,-500.0,0.00055616,120]
[320719616,1711531862829,-1491.19,0.00055616,120]
[320719617,1711531862844,-500.0,0.00055616,120]
[320719618,1711531862861,-1446.75,0.00055616,120]
[320719619,1711531862876,-515.94,0.00055616,120]
[320719620,1711531862890,-257.653158,0.00055616,120]
[320719621,1711531862905,-500.0,0.00055616,120]
[320719622,1711531862920,-500.0,0.00055616,120]
[320719623,1711531862936,-9255.46,0.00055616,120]
[320719624,1711531862951,-500.0,0.00055616,120]
[320719625,1711531862966,-1027.29,0.00055616,120]
[320719626,1711531862981,-993.13,0.00055616,120]
[320719627,1711531862995,-625.4,0.00055616,120]
[320719628,1711531863011,-500.0,0.00055616,120]
[320719629,1711531863027,-309.0827872,0.00055616,120]
[320719630,1711531863041,-500.0,0.00055616,120]
[320719631,1711531863057,-2479.29,0.00055616,120]
[320719632,1711531863071,-689.69,0.00055616,120]
[320719633,1711531863086,-1543.77,0.00055616,120]
[320719634,1711531863104,-6010.57,0.00055616,120]
[320719635,1711531863119,-1516.23,0.00055616,120]
[320719636,1711531863132,-1298.51,0.00055616,120]
[320719637,1711531863147,-900.15,0.00055616,120]
[320719638,1711531863162,-7570.24,0.00055616,120]
[320719639,1711531863176,-2518.49,0.00055616,120]
[320719640,1711531863192,-1843.36,0.00055616,120]
[320719641,1711531863207,-8217.31,0.00055616,120]
[320719642,1711531863222,-1951.1,0.00055616,120]
[320719643,1711531863235,-10648.76,0.00055616,120]
[320719644,1711531863250,-815.48,0.00055616,120]
[320719645,1711531863266,-4567.74,0.00055616,120]
[320719646,1711531863282,-5821.4,0.00055616,120]
[320719647,1711531863292,-16192.89,0.00055616,120]
[320719648,1711531863301,-1945.24,0.00055616,120]
[320719649,1711531863311,-14993.94,0.00055616,120]
[320719650,1711531863321,-638.93,0.00055616,120]
[320719651,1711531863331,-607.15,0.00055616,120]
[320719652,1711531863340,-4506.13,0.00055616,120]
[320719653,1711531863351,-975.08,0.00055616,120]
[320719654,1711531863360,-2152.72,0.00055616,120]
[320719655,1711531863370,-500.0,0.00055616,120]
[320719656,1711531863379,-2025.95,0.00055616,120]
[320719657,1711531863389,-834.27,0.00055616,120]
[320719658,1711531863399,-1941.23,0.00055616,120]
[320719659,1711531863409,-500.0,0.00055616,120]
[320719660,1711531863419,-1253.97,0.00055616,120]
[320719661,1711531863428,-1846.5,0.00055616,120]
[320719662,1711531863437,-718.34,0.00055616,120]
[320719663,1711531863447,-5612.19,0.00055616,120]
[320719664,1711531863456,-2198.64,0.00055616,120]
[320719665,1711531863466,-88899.08,0.00055616,120]
[320719666,1711531863475,-895.87,0.00055616,120]
[320719667,1711531863485,-1956.19,0.00055616,120]
[320719668,1711531863495,-5057.24,0.00055616,120]
[320719669,1711531863505,-884.102709,0.00055616,120]
[320719670,1711531863514,-500.0,0.00055616,120]
[320719671,1711531863525,-4505.88,0.00055616,120]
[320719672,1711531863535,-831.09,0.00055616,120]
[320719673,1711531863544,-12667.88,0.00055616,120]
[320719674,1711531863554,-2228.45,0.00055616,120]
[320719675,1711531863563,-500.0,0.00055616,120]
[320719676,1711531863573,-49453.04,0.00055616,120]
[320719677,1711531863927,-20350.58,0.00055616,120]
[320719678,1711531863948,-1986.37,0.00055616,120]
[320719679,1711531863966,-33040.61,0.00055616,120]
[320719680,1711531863985,-500.0,0.00055616,7]
[320719681,1711531863994,-1568.65,0.00055616,120]
[320719682,1711531864004,-1356.91,0.00055616,120]
[320719683,1711531864015,-500.0,0.00055616,120]
[320719684,1711531864025,-4171.87,0.00055616,120]
[320719685,1711531864035,-8728.41,0.00055616,120]
[320719686,1711531864046,-1972.92,0.00055616,120]
[320719687,1711531864057,-1671.83,0.00055616,120]
[320719688,1711531864066,-654.94,0.00055616,120]
[320719689,1711531864076,-500.0,0.00055616,120]
[320719690,1711531864087,-1146.86,0.00055616,120]
[320719691,1711531864097,-2325.18,0.00055616,120]
[320719692,1711531864109,-1591.24,0.00055616,120]
[320719693,1711531864119,-500.0,0.00055616,120]
[320719694,1711531864128,-975.38,0.00055616,120]
[320719695,1711531864138,-1189.59,0.00055616,120]
[320719696,1711531864147,-640.39,0.00055616,120]
[320719697,1711531864157,-10580.07,0.00055616,120]
[320719698,1711531864166,-4650.41,0.00055616,120]
[320719699,1711531864177,-500.0,0.00055616,120]
[320719700,1711531864187,-1777.65,0.00055616,120]
[320719701,1711531864196,-524.94,0.00055616,120]
[320719702,1711531864207,-5257.55,0.00055616,120]
[320719703,1711531864217,-2207.18,0.00055616,120]
[320719704,1711531864227,-500.0,0.00055616,120]
[320719705,1711531864238,-779.25,0.00055616,120]
[320719706,1711531864249,-500.0,0.00055616,120]
[320719707,1711531864258,-2469.94,0.00055616,120]
[320719708,1711531864268,-500.0,0.00055616,120]
[320719709,1711531864277,-757.65,0.00055616,120]
[320719710,1711531864288,-552.21,0.00055616,120]
[320719711,1711531864298,-4250.27,0.00055616,120]
[320719712,1711531864309,-4915.26,0.00055616,120]
[320719713,1711531864319,-3918.75,0.00055616,120]
[320719714,1711531864329,-53287.23,0.00055616,120]
[320719715,1711531864339,-500.0,0.00055616,120]
[320719716,1711531864350,-648.69,0.00055616,120]
[320719717,1711531864359,-4113.43,0.00055616,120]
[320719718,1711531864368,-500.0,0.00055616,120]
[320719719,1711531864377,-1576.62,0.00055616,120]
[320719720,1711531864386,-5576.53,0.00055616,120]
[320719721,1711531864396,-1034.84,0.00055616,120]
[320719722,1711531864405,-3314.77,0.00055616,120]
[320719723,1711531864415,-786.38,0.00055616,120]
[320719724,1711531864424,-500.0,0.00055616,85]
[320719725,1711531864434,-5205.21,0.00055616,120]
[320719726,1711531864445,-1891.4,0.00055616,120]
[320719727,1711531864455,-1087.33,0.00055616,120]
[320719728,1711531864465,-2349.37,0.00055616,120]
[320719729,1711531864475,-881.46,0.00055616,120]
[320719730,1711531864485,-524.64,0.00055616,120]
[320719731,1711531864496,-951.7,0.00055616,120]
[320719732,1711531864506,-5965.79,0.00055616,120]
[320719733,1711531864516,-15519.5,0.00055616,120]
[320719734,1711531864527,-500.0,0.00055616,120]
[320719735,1711531864537,-500.0,0.00055616,120]
[320719736,1711531864548,-1461.03,0.00055616,120]
[320719737,1711531864560,-2049.25,0.00055616,120]
[320719738,1711531864570,-5568.74,0.00055616,120]
[320719739,1711531864580,-500.0,0.00055616,120]
[320719740,1711531864590,-1091.85,0.00055616,120]
[320719741,1711531864603,-2371.9,0.00055616,120]
[320719742,1711531864613,-5312.45,0.00055616,21]
[320719743,1711531864622,-4946.95,0.00055616,120]
[320719744,1711531864631,-857.9,0.00055616,120]
[320719745,1711531864642,-1675.86,0.00055616,120]
[320719746,1711531864651,-500.0,0.00055616,120]
[320719747,1711531864660,-7260.49,0.00055616,120]
[320719748,1711531864671,-2181.49,0.00055616,120]
[320719749,1711531864681,-20131.11,0.00055616,120]
[320719750,1711531864690,-11042.37,0.00055616,120]
[320719751,1711531864699,-6897.21,0.00055616,120]
[320719752,1711531864709,-651.55,0.00055616,120]
[320719753,1711531864719,-701.95,0.00055616,120]
[320719754,1711531864728,-2130.92,0.00055616,120]
[320719755,1711531864738,-779.79,0.00055616,120]
[320719756,1711531864747,-4603.54,0.00055616,120]
[320719757,1711531864757,-712.79,0.00055616,120]
[320719758,1711531864766,-7358.75,0.00055616,120]
[320719759,1711531864776,-7568.71,0.00055616,120]
[320719760,1711531864784,-269.33658709,0.00055616,4]
[320719761,1711531864795,-500.0,0.00055616,120]
[320719762,1711531864804,-18585.37,0.00055616,120]
[320719763,1711531864814,-259.61359,0.00055616,120]
[320719764,1711531864823,-1070.33,0.00055616,120]
[320719765,1711531864833,-1202.8,0.00055616,120]
[320719766,1711531864842,-1312.45,0.00055616,120]
[320719767,1711531864853,-2530.08,0.00055616,120]
[320719768,1711531864861,-2457.99,0.00055616,120]
[320719769,1711531864870,-500.0,0.00055616,120]
[320719770,1711531864880,-257.94989128,0.00055616,120]
[320719771,1711531865158,-941.43031319,0.00055616,120]
[320719772,1711531865276,-4253.32979553,0.00055616,120]
[320719773,1711531865285,-1085.21,0.00055616,120]
[320719774,1711531865296,-500.0,0.00055616,120]
[320719775,1711531865306,-104.86101728,0.00055616,120]
[320719776,1711531865332,-1868.41,0.00054794,120]
[320719777,1711531865342,-1994.40898272,0.00055616,120]